Workbook

Sheet Inicio
B1: INFORMACIÓN SOBRE ESTA PLANTILLA
B2: Use este libro Presupuesto del evento para realizar un seguimiento de los Gastos generados y los Ingresos obtenidos de un evento.
B3: Rellene el Nombre del evento y escriba la información en tablas en la hoja de cálculo Gastos y la hoja de cálculo Ingresos.
B4: El Gastos totales y el Ingresos totales se calculan automáticamente.
B5: El resumen y el gráfico de Ganancias y Pérdidas se actualizan automáticamente en la hoja de cálculo Resumen de beneficios y pérdida.
B6: Nota:
B7: Se facilitan instrucciones adicionales en la columna A de cada hoja de cálculo. Este texto se ha ocultado a propósito. Para eliminar el texto, seleccione la columna A y, a continuación, ELIMINAR.
B8: Para obtener más información sobre las tablas, presione las teclas MAYÚS y F10 dentro de una tabla, seleccione la opción TABLA y, a continuación, TEXTO ALTERNATIVO

Sheet Gastos
A1: Escriba los gastos Estimados y Reales de cada categoría en las tablas correspondientes de la hoja de cálculo y el Nombre del evento en la celda D1 para personalizar el título de esta y otras hojas de cálculo. El subtítulo de esta hoja de cálculo está en la celda H1. Encontrará instrucciones útiles sobre cómo usar esta hoja de cálculo en las celdas de esta columna. La instrucción siguiente se encuentra en la celda A3. | B1: Presupuesto de evento para | D1: Nombre del evento | H1: GASTOS
A3: La etiqueta Gastos totales se encuentra en la celda a la derecha, la etiqueta Estimados en la celda G3 y Reales en la celda H3. | B3: GASTOS TOTALES | G3: Estimado | H3: Real
A4: Los gastos estimados totales en la celda G4 y los gastos reales totales en H4 se calculan automáticamente. La instrucción siguiente se encuentra en la celda A6. | G4: =SUM(C11,C19,C25,C32,G11,G19,G24) -> 882.00 € | H4: =SUM(D11,D19,D25,D32,H11,H19,H24) -> 302.00 €
A6: Escriba los gastos de sitio en la tabla que comienza en la celda de la derecha y los gastos de comida en la tabla que comienza en la celda F6. La instrucción siguiente se encuentra en la celda A13. | B6: Sitio | C6: Estimado | D6: Real | F6: Aperitivos | G6: Estimado | H6: Real
B7: Gastos de sala y auditorio | C7: 500.00 € | F7: Comida
B8: Personal del sitio | F8: Bebidas | G8: 20.00 €
B9: Equipamiento | F9: Mantelería | H9: 20.00 €
B10: Mesas y sillas | F10: Personal y compensaciones
B11: Total | C11: =SUBTOTAL(109,SiteExpenses[Estimado]) -> 500.00 € | D11: =SUBTOTAL(103,SiteExpenses[Real]) -> 0.00 € | F11: Total | G11: =SUBTOTAL(109,RefreshmentsExpenses[Estimado]) -> 20.00 € | H11: =SUBTOTAL(103,RefreshmentsExpenses[Real]) -> 1.00 €
A13: Escriba los gastos de decoración en la tabla que comienza en la celda de la derecha y los gastos de programa en la tabla que comienza en la celda F13. La instrucción siguiente se encuentra en la celda A21. | B13: Decoraciones | C13: Estimado | D13: Real | F13: Programa | G13: Estimado | H13: Real
B14: Flores | C14: 200.00 € | D14: 300.00 € | F14: Artistas
B15: Velas | F15: Altavoces | G15: 30.00 €
B16: Iluminación | F16: Viaje
B17: Globos | F17: Hotel
B18: Suministros de papel | F18: Otros
B19: Total | C19: =SUBTOTAL(109,DecorationsExpenses[Estimado]) -> 200.00 € | D19: =SUBTOTAL(109,DecorationsExpenses[Real]) -> 300.00 € | F19: Total | G19: =SUBTOTAL(109,ProgramExpenses[Estimado]) -> 30.00 € | H19: =SUBTOTAL(103,ProgramExpenses[Real]) -> 0.00 €
A21: Escriba los gastos de publicidad en la tabla que comienza en la celda de la derecha y los gastos de premios en la tabla que comienza en la celda F21. La instrucción siguiente se encuentra en la celda A27. | B21: Publicidad | C21: Estimado | D21: Real | F21: Premios | G21: Estimado | H21: Real
B22: Trabajo de gráficos | F22: Cintas, placas y trofeos
B23: Fotocopias e impresión | C23: 20.00 € | F23: Regalos | G23: 100.00 €
B24: Gastos de envío | F24: Total | G24: =SUBTOTAL(109,PrizesExpenses[Estimado]) -> 100.00 € | H24: =SUBTOTAL(103,PrizesExpenses[Real]) -> 0.00 €
B25: Total | C25: =SUBTOTAL(109,PublicityExpenses[Estimado]) -> 20.00 € | D25: =SUBTOTAL(103,PublicityExpenses[Real]) -> 0.00 €
A27: Escriba los gastos varios en la tabla que comienza en la celda de la derecha. | B27: Varios | C27: Estimado | D27: Real
B28: Teléfono | D28: 13.00 €
B29: Transporte | C29: 12.00 €
B30: Suministros de papelería
B31: Servicios de fax
B32: Total | C32: =SUBTOTAL(109,MiscellaneousExpenses[Estimado]) -> 12.00 € | D32: =SUBTOTAL(103,MiscellaneousExpenses[Real]) -> 1.00 €

Sheet Ingresos
A1: Escriba los ingresos estimados y reales de cada categoría en las respectivas tablas de esta hoja de cálculo. El título de esta hoja de cálculo se actualiza automáticamente en la celda a la derecha. El título se encuentra en la celda G1. Encontrará instrucciones útiles sobre cómo usar esta hoja de cálculo en las celdas de esta columna. La instrucción siguiente se encuentra en la celda A3. | B1: =Gastos!B1 -> Presupuesto de evento para | D1: =Gastos!D1 -> Nombre del evento | G1: INGRESOS
A3: La etiqueta Ingresos totales se encuentra en la celda a la derecha, la etiqueta Estimados en la celda F3 y Reales en la celda G3. | B3: INGRESOS TOTALES | F3: Estimado | G3: Real
A4: El total de ingresos estimados se calcula automáticamente en la celda F4 y el total de ingresos reales en G4. | F4: =SUM(Admisiones[[#Totals],[Ingresos estimados]],AnuncioDePrograma[[#Totals],[Ingresos estimados]],ExhibitorsAndVendors[[#Totals],[Ingresos estimados]],VentaDeProductos[[#Totals],[Ingresos estimados]]) -> 1,936.00 € | G4: =SUM(Admisiones[[#Totals],[Ingresos reales]],AnuncioDePrograma[[#Totals],[Ingresos reales]],ExhibitorsAndVendors[[#Totals],[Ingresos reales]],VentaDeProductos[[#Totals],[Ingresos reales]]) -> 1,831.00 €
A5: La etiqueta Admisiones se encuentra en la celda de la derecha. | B5: ADMISIONES
A6: Escriba el número de admisiones estimadas y reales con tarifas de entradas en la tabla que comienza en la celda a la derecha. Los ingresos por admisiones estimados y reales se calculan automáticamente. La instrucción siguiente se encuentra en la celda A11. | B6: Número estimado | C6: Número real | D6: Tipo | E6: Precio | F6: Ingresos estimados | G6: Ingresos reales
B7: 300 | C7: 278 | D7: Adultos @ | E7: 5.00 € | F7: =B7*E7 -> 1,500.00 € | G7: =C7*E7 -> 1,390.00 €
B8: 197 | C8: 195 | D8: Niños @ | E8: 2.00 € | F8: =B8*E8 -> 394.00 € | G8: =C8*E8 -> 390.00 €
B9: 42 | C9: 51 | D9: Otros @ | E9: 1.00 € | F9: =B9*E9 -> 42.00 € | G9: =C9*E9 -> 51.00 €
B10: Total | F10: =SUBTOTAL(109,Admisiones[Ingresos estimados]) -> 1,936.00 € | G10: =SUBTOTAL(109,Admisiones[Ingresos reales]) -> 1,831.00 €
A11: La etiqueta Anuncios en el programa se encuentra en la celda de la derecha. | B11: ANUNCIO DE PROGRAMA
A12: Escriba el número de Anuncios en el programa estimados y reales con tarifas de Anuncios en la tabla que comienza en la celda a la derecha. Los ingresos por anuncios estimados y reales se calculan automáticamente. La instrucción siguiente está en la celda A17. | B12: Número estimado | C12: Número real | D12: Tipo | E12: Precio | F12: Ingresos estimados | G12: Ingresos reales
B13: 12 | D13: Portadas @ | F13: =B13*E13 -> 0.00 € | G13: =C13*E13 -> 0.00 €
C14: 158 | D14: Medias páginas @ | F14: =B14*E14 -> 0.00 € | G14: =C14*E14 -> 0.00 €
B15: 4 | D15: Cuartos de página @ | F15: =B15*E15 -> 0.00 € | G15: =C15*E15 -> 0.00 €
B16: Total | F16: =SUBTOTAL(109,AnuncioDePrograma[Ingresos estimados]) -> 0.00 € | G16: =SUBTOTAL(109,AnuncioDePrograma[Ingresos reales]) -> 0.00 €
A17: La etiqueta Expositores o proveedores se encuentra en la celda a la derecha. | B17: EXPOSITORES Y PROVEEDORES
A18: Escriba el número de Expositores o proveedores estimados y reales con tarifas de puestos en la tabla que comienza en la celda a la derecha. Los ingresos estimados y reales se calculan automáticamente. La instrucción siguiente se encuentra en la celda A23. | B18: Número estimado | C18: Número real | D18: Tipo | E18: Precio | F18: Ingresos estimados | G18: Ingresos reales
B19: 23 | D19: Stands grandes @ | F19: =B19*E19 -> 0.00 € | G19: =C19*E19 -> 0.00 €
B20: 354 | D20: Stands medianos @ | F20: =B20*E20 -> 0.00 € | G20: =C20*E20 -> 0.00 €
B21: 56 | D21: Stands pequeños @ | F21: =B21*E21 -> 0.00 € | G21: =C21*E21 -> 0.00 €
B22: Total | F22: =SUBTOTAL(109,ExhibitorsAndVendors[Ingresos estimados]) -> 0.00 € | G22: =SUBTOTAL(109,ExhibitorsAndVendors[Ingresos reales]) -> 0.00 €
A23: La etiqueta Venta de productos se encuentra en la celda de la derecha. | B23: VENTA DE PRODUCTOS
A24: Escriba el número de Ventas de productos estimadas y reales con los precios de los productos en la tabla que comienza en la celda a la derecha. Los ingresos estimados y reales se calculan automáticamente. | B24: Número estimado | C24: Número real | D24: Tipo | E24: Precio | F24: Ingresos estimados | G24: Ingresos reales
D25: Artículos @ | F25: =B25*E25 -> 0.00 € | G25: =C25*E25 -> 0.00 €
B26: 123 | D26: Artículos @ | F26: =B26*E26 -> 0.00 € | G26: =C26*E26 -> 0.00 €
D27: Artículos @ | F27: =B27*E27 -> 0.00 € | G27: =C27*E27 -> 0.00 €
B28: 13 | D28: Artículos @ | F28: =B28*E28 -> 0.00 € | G28: =C28*E28 -> 0.00 €
B29: Total | F29: =SUBTOTAL(109,VentaDeProductos[Ingresos estimados]) -> 0.00 € | G29: =SUBTOTAL(109,VentaDeProductos[Ingresos reales]) -> 0.00 €

Sheet Resumen de beneficios y pérdida
A1: El resumen y el gráfico de ganancias y pérdidas que muestra el Total de ingresos y gastos se actualiza automáticamente en esta hoja de cálculo. El título de esta hoja de cálculo se actualiza automáticamente en la celda a la derecha. El subtítulo se encuentra en las celdas G1 y G2. Encontrará instrucciones útiles sobre cómo usar esta hoja de cálculo en las celdas de esta columna. La instrucción siguiente se encuentra en la celda A3. | B1: =Gastos!B1 -> Presupuesto de evento para | D1: =Gastos!D1 -> Nombre del evento | G1: BENEFICIOS
G2: Resumen de pérdidas
A3: El gráfico de barras que compara los gastos estimados y reales está en la celda E3. | E3: El gráfico de barras que muestra la comparación entre los gastos e ingresos estimados y los gastos e ingresos reales está en esta celda.
A4: La tabla de resumen que comienza en la celda a la derecha también se actualiza automáticamente. La instrucción siguiente se encuentra en la celda A8. | B4: Total | C4: Estimado | D4: Real
B5: Ingresos totales | C5: =Ingresos!F10 -> 1,936.00 € | D5: =Ingresos!F4 -> 1,936.00 €
B6: Gastos totales | C6: =Gastos!G4 -> 882.00 € | D6: =Gastos!H4 -> 302.00 €
A8: El total de beneficios o pérdidas estimado se calcula automáticamente en la celda C8 y el total de beneficios o pérdidas reales en la celda D8. | B8: Beneficio total (o pérdida) | C8: =C5-C6 -> 1,054.00 € | D8: =D5-D6 -> 1,634.00 €
